[Event "Late-Titled-Tuesday-Blitz-June-18-2024"]
[Site "Chess.com"]
[Date "2024.06.18"]
[Round "7"]
[White "Duhless"]
[Black "Chopper1905"]
[Result "1-0"]
[WhiteElo "3103"]
[BlackElo "2915"]
[TimeControl "180+1"]
[EndTime "15:20:32 PDT"]
[Termination "Duhless won by resignation"]

1. e4 {[%clk 0:02:59.6]} 1... e5 {[%clk 0:02:26.7]} 2. Nf3 {[%clk 0:02:59.3]}
2... Nc6 {[%clk 0:02:26.9]} 3. Bc4 {[%clk 0:02:59.6]} 3... Bc5 {[%clk
0:02:26.9]} 4. c3 {[%clk 0:02:58.2]} 4... Nf6 {[%clk 0:02:27.2]} 5. d3 {[%clk
0:02:58.8]} 5... d6 {[%clk 0:02:27.2]} 6. O-O {[%clk 0:02:58.6]} 6... O-O {[%clk
0:02:27.1]} 7. Re1 {[%clk 0:02:58.8]} 7... a5 {[%clk 0:02:25.4]} 8. h3 {[%clk
0:02:58.7]} 8... Be6 {[%clk 0:02:24.3]} 9. Bxe6 {[%clk 0:02:55.9]} 9... fxe6
{[%clk 0:02:24.2]} 10. d4 {[%clk 0:02:56.8]} 10... exd4 {[%clk 0:02:23.2]} 11.
cxd4 {[%clk 0:02:56.8]} 11... Bb6 {[%clk 0:02:22.5]} 12. Nc3 {[%clk 0:02:56.7]}
12... e5 {[%clk 0:02:02.6]} 13. Be3 {[%clk 0:02:36.7]} 13... exd4 {[%clk
0:01:35.9]} 14. Nxd4 {[%clk 0:02:36.2]} 14... Qd7 {[%clk 0:01:32.4]} 15. Nxc6
{[%clk 0:02:13.6]} 15... Qxc6 {[%clk 0:01:30.6]} 16. Qb3+ {[%clk 0:02:07.1]}
16... Rf7 {[%clk 0:01:23.2]} 17. Bxb6 {[%clk 0:02:07.1]} 17... Qxb6 {[%clk
0:01:16.5]} 18. Qxb6 {[%clk 0:02:06.7]} 18... cxb6 {[%clk 0:01:17.4]} 19. Rad1
{[%clk 0:02:06.7]} 19... Rd7 {[%clk 0:01:13.8]} 20. Re2 {[%clk 0:01:54.5]} 20...
Re8 {[%clk 0:01:11.8]} 21. f3 {[%clk 0:01:49.6]} 21... Kf7 {[%clk 0:01:00.2]}
22. Red2 {[%clk 0:01:46.5]} 22... Ke7 {[%clk 0:00:56.2]} 23. h4 {[%clk
0:01:30.1]} 23... Rc8 {[%clk 0:00:54.9]} 24. g4 {[%clk 0:01:27.9]} 24... Rc6
{[%clk 0:00:27.8]} 25. e5 {[%clk 0:00:29.6]} 25... Ne8 {[%clk 0:00:19.9]} 26.
Ne4 {[%clk 0:00:28.9]} 26... d5 {[%clk 0:00:16.4]} 27. Rxd5 {[%clk 0:00:24.7]}
27... Rxd5 {[%clk 0:00:17.3]} 28. Rxd5 {[%clk 0:00:25]} 28... Rc1+ {[%clk
0:00:18.2]} 29. Kf2 {[%clk 0:00:24]} 29... Rc2+ {[%clk 0:00:18.9]} 30. Rd2
{[%clk 0:00:23.6]} 30... Rc4 {[%clk 0:00:17.3]} 31. Ke3 {[%clk 0:00:21.4]} 31...
Nc7 {[%clk 0:00:16.3]} 32. f4 {[%clk 0:00:20.7]} 32... Na6 {[%clk 0:00:08.1]}
33. Nd6 {[%clk 0:00:18.8]} 33... Rc1 {[%clk 0:00:07.6]} 34. Nf5+ {[%clk
0:00:19.3]} 34... Ke8 {[%clk 0:00:02]} 35. Nxg7+ {[%clk 0:00:19.2]} 35... Kf8
{[%clk 0:00:02.5]} 36. Ne6+ {[%clk 0:00:18.4]} 36... Ke7 {[%clk 0:00:02.6]} 37.
f5 {[%clk 0:00:17.9]} 37... Nb4 {[%clk 0:00:01.6]} 38. Ng5 {[%clk 0:00:12.9]}
38... Re1+ {[%clk 0:00:01.8]} 39. Re2 {[%clk 0:00:12.5]} 39... Rd1 {[%clk
0:00:01.9]} 40. f6+ {[%clk 0:00:12.4]} 40... Ke8 {[%clk 0:00:01.8]} 41. Ke4
{[%clk 0:00:11.1]} 41... Nc6 {[%clk 0:00:02.2]} 42. f7+ {[%clk 0:00:10.2]} 42...
Ke7 {[%clk 0:00:02.3]} 43. Rf2 {[%clk 0:00:10.1]} 43... Rd4+ {[%clk 0:00:02.2]}
44. Ke3 {[%clk 0:00:10.1]} 44... Rd8 {[%clk 0:00:02.8]} 45. Nxh7 {[%clk
0:00:10.5]} 45... Nxe5 {[%clk 0:00:02.3]} 46. f8=Q+ {[%clk 0:00:10.7]} 46...
Rxf8 {[%clk 0:00:02.8]} 47. Rxf8 {[%clk 0:00:10.8]} 47... Nxg4+ {[%clk
0:00:03.4]} 48. Kf4 {[%clk 0:00:11]} 48... Nf2 {[%clk 0:00:02.7]} 49. Rb8 {[%clk
0:00:10.5]} 49... Nd3+ {[%clk 0:00:02.7]} 50. Ke3 {[%clk 0:00:10.9]} 50... Nc5
{[%clk 0:00:03.6]} 51. Kd4 {[%clk 0:00:11.2]} 51... Ne6+ {[%clk 0:00:03.7]} 52.
Ke5 {[%clk 0:00:11.2]} 52... Nc5 {[%clk 0:00:03.9]} 53. Kd5 {[%clk 0:00:11.4]}
53... Kd7 {[%clk 0:00:03.4]} 54. Nf6+ {[%clk 0:00:11.4]} 54... Kc7 {[%clk
0:00:04.3]} 55. Rg8 {[%clk 0:00:11.1]} 55... Nd3 {[%clk 0:00:05]} 56. Rg7+
{[%clk 0:00:11]} 56... Kd8 {[%clk 0:00:05.3]} 57. b3 {[%clk 0:00:10.7]} 57...
Nf4+ {[%clk 0:00:05.4]} 58. Kd6 {[%clk 0:00:10.8]} 1-0

[Event "Late-Titled-Tuesday-Blitz-June-18-2024"]
[Site "Chess.com"]
[Date "2024.06.18"]
[Round "7"]
[White "vladislavkovalev"]
[Black "Oleksandr_Bortnyk"]
[Result "1-0"]
[WhiteElo "2884"]
[BlackElo "3049"]
[TimeControl "180+1"]
[EndTime "15:20:33 PDT"]
[Termination "vladislavkovalev won on time"]

1. e4 {[%clk 0:03:00.9]} 1... Nf6 {[%clk 0:02:58.1]} 2. e5 {[%clk 0:02:59.2]}
2... Nd5 {[%clk 0:02:58.5]} 3. d4 {[%clk 0:02:59.6]} 3... d6 {[%clk 0:02:59]} 4.
Nf3 {[%clk 0:03:00]} 4... dxe5 {[%clk 0:02:59.6]} 5. Nxe5 {[%clk 0:02:56.8]}
5... c6 {[%clk 0:03:00]} 6. Be2 {[%clk 0:02:54.4]} 6... Bf5 {[%clk 0:02:59.9]}
7. O-O {[%clk 0:02:48.1]} 7... Nd7 {[%clk 0:03:00]} 8. c4 {[%clk 0:02:38.3]}
8... N5f6 {[%clk 0:02:59.3]} 9. Nc3 {[%clk 0:02:34.1]} 9... Nxe5 {[%clk
0:02:50]} 10. dxe5 {[%clk 0:02:35]} 10... Qxd1 {[%clk 0:02:50.5]} 11. Rxd1
{[%clk 0:02:35]} 11... Nd7 {[%clk 0:02:51.4]} 12. f4 {[%clk 0:02:30.5]} 12... e6
{[%clk 0:02:50.8]} 13. Be3 {[%clk 0:02:30.6]} 13... Bb4 {[%clk 0:02:27.3]} 14.
Rac1 {[%clk 0:02:23.9]} 14... Ke7 {[%clk 0:02:13]} 15. a3 {[%clk 0:02:23.7]}
15... Bxc3 {[%clk 0:02:09.9]} 16. Rxc3 {[%clk 0:02:23.4]} 16... Rhd8 {[%clk
0:02:09.4]} 17. Kf2 {[%clk 0:02:19.9]} 17... a5 {[%clk 0:02:04.5]} 18. b3 {[%clk
0:02:11]} 18... a4 {[%clk 0:01:56.4]} 19. b4 {[%clk 0:02:09.6]} 19... f6 {[%clk
0:01:49.2]} 20. c5 {[%clk 0:01:31.4]} 20... h6 {[%clk 0:01:40.2]} 21. exf6+
{[%clk 0:01:14]} 21... Nxf6 {[%clk 0:01:41.1]} 22. Rcc1 {[%clk 0:01:13.6]} 22...
Bg4 {[%clk 0:01:12.7]} 23. Bxg4 {[%clk 0:00:39.1]} 23... Nxg4+ {[%clk
0:01:12.6]} 24. Kf3 {[%clk 0:00:39.2]} 24... h5 {[%clk 0:00:53.8]} 25. h3 {[%clk
0:00:37.8]} 25... Nf6 {[%clk 0:00:44.4]} 26. Bd4 {[%clk 0:00:30.8]} 26... Nd5
{[%clk 0:00:30.3]} 27. h4 {[%clk 0:00:14.8]} 27... Rf8 {[%clk 0:00:26.3]} 28. g3
{[%clk 0:00:13.1]} 28... g6 {[%clk 0:00:24]} 29. Be5 {[%clk 0:00:13.4]} 29...
Rf5 {[%clk 0:00:21.7]} 30. Ke4 {[%clk 0:00:10.4]} 30... Kd7 {[%clk 0:00:19.6]}
31. Rb1 {[%clk 0:00:09.2]} 31... Kc8 {[%clk 0:00:13.7]} 32. Rb2 {[%clk
0:00:07.1]} 32... Rf7 {[%clk 0:00:08.6]} 33. Rdb1 {[%clk 0:00:07.2]} 33... b5
{[%clk 0:00:08.2]} 34. cxb6 {[%clk 0:00:07.3]} 34... Kb7 {[%clk 0:00:08.8]} 35.
Rc2 {[%clk 0:00:05.6]} 35... Kxb6 {[%clk 0:00:05.5]} 36. Rbc1 {[%clk 0:00:06.3]}
36... Rc8 {[%clk 0:00:05.3]} 37. Bd4+ {[%clk 0:00:06.4]} 37... Kb7 {[%clk
0:00:04.3]} 38. b5 {[%clk 0:00:04.3]} 38... c5 {[%clk 0:00:03.1]} 39. Rxc5
{[%clk 0:00:04.1]} 39... Rxc5 {[%clk 0:00:02.9]} 40. Rxc5 {[%clk 0:00:05]} 40...
Rd7 {[%clk 0:00:03]} 41. Rc6 {[%clk 0:00:04.4]} 41... Ne7 {[%clk 0:00:01.4]} 42.
Rxe6 {[%clk 0:00:04.5]} 42... Nf5 {[%clk 0:00:02.3]} 43. Rb6+ {[%clk 0:00:02.9]}
43... Kc7 {[%clk 0:00:02.5]} 44. Rc6+ {[%clk 0:00:02.8]} 44... Kb7 {[%clk
0:00:02.9]} 45. Bf2 {[%clk 0:00:01.8]} 45... Rd2 {[%clk 0:00:03]} 46. Rb6+
{[%clk 0:00:02.2]} 46... Kc7 {[%clk 0:00:03.6]} 47. Rc6+ {[%clk 0:00:02.1]}
47... Kd7 {[%clk 0:00:04.1]} 48. Bc5 {[%clk 0:00:01.6]} 48... Nxg3+ {[%clk
0:00:03.7]} 49. Ke5 {[%clk 0:00:02.1]} 49... Re2+ {[%clk 0:00:03.7]} 50. Kf6
{[%clk 0:00:02]} 50... Rb2 {[%clk 0:00:03.5]} 51. Kxg6 {[%clk 0:00:02.1]} 51...
Rxb5 {[%clk 0:00:03.6]} 52. Rd6+ {[%clk 0:00:02]} 52... Kc7 {[%clk 0:00:04.2]}
53. Rd5 {[%clk 0:00:01.9]} 53... Kc6 {[%clk 0:00:02.2]} 54. Rg5 {[%clk
0:00:01.8]} 54... Ne4 {[%clk 0:00:02.8]} 55. Be7 {[%clk 0:00:02.2]} 55... Nxg5
{[%clk 0:00:03]} 56. fxg5 {[%clk 0:00:03.1]} 56... Kd7 {[%clk 0:00:02.3]} 57.
Bf6 {[%clk 0:00:02.3]} 57... Rb3 {[%clk 0:00:02.6]} 58. Kf7 {[%clk 0:00:02.6]}
58... Rxa3 {[%clk 0:00:01.6]} 59. g6 {[%clk 0:00:03.5]} 59... Rg3 {[%clk
0:00:01.4]} 60. g7 {[%clk 0:00:04]} 60... a3 {[%clk 0:00:01.2]} 61. Bg5 {[%clk
0:00:03]} 61... a2 {[%clk 0:00:01]} 62. g8=Q {[%clk 0:00:03.4]} 1-0

[Event "Late-Titled-Tuesday-Blitz-June-18-2024"]
[Site "Chess.com"]
[Date "2024.06.18"]
[Round "7"]
[White "EliteChess0967"]
[Black "KebabJangles"]
[Result "1-0"]
[WhiteElo "2390"]
[BlackElo "2282"]
[TimeControl "180+1"]
[EndTime "15:20:35 PDT"]
[Termination "EliteChess0967 won by checkmate"]

1. d4 {[%clk 0:02:57.6]} 1... Nf6 {[%clk 0:02:57.6]} 2. Nf3 {[%clk 0:02:57.8]}
2... g6 {[%clk 0:02:56.5]} 3. g3 {[%clk 0:02:58.5]} 3... Bg7 {[%clk 0:02:56.2]}
4. Bg2 {[%clk 0:02:59.3]} 4... O-O {[%clk 0:02:56.7]} 5. b3 {[%clk 0:02:59.7]}
5... d6 {[%clk 0:02:56.5]} 6. Bb2 {[%clk 0:03:00.4]} 6... e5 {[%clk 0:02:55.8]}
7. dxe5 {[%clk 0:02:59]} 7... Nfd7 {[%clk 0:02:55.4]} 8. c4 {[%clk 0:02:56.9]}
8... Nxe5 {[%clk 0:02:49.5]} 9. Qd2 {[%clk 0:02:52.6]} 9... Nbc6 {[%clk
0:02:47.9]} 10. O-O {[%clk 0:02:51.9]} 10... Nxf3+ {[%clk 0:02:47.7]} 11. Bxf3
{[%clk 0:02:51.9]} 11... Bxb2 {[%clk 0:02:45.3]} 12. Qxb2 {[%clk 0:02:52.8]}
12... Ne5 {[%clk 0:02:41.9]} 13. Bg2 {[%clk 0:02:53]} 13... Qf6 {[%clk
0:02:41.9]} 14. Nc3 {[%clk 0:02:50.3]} 14... Be6 {[%clk 0:02:39]} 15. Qd2 {[%clk
0:02:37.1]} 15... Rab8 {[%clk 0:02:36.4]} 16. Rac1 {[%clk 0:02:35.7]} 16... Rfd8
{[%clk 0:02:34.8]} 17. Nd5 {[%clk 0:02:32.8]} 17... Bxd5 {[%clk 0:02:34.8]} 18.
cxd5 {[%clk 0:02:33.7]} 18... Qe7 {[%clk 0:02:12.1]} 19. Qa5 {[%clk 0:02:28.6]}
19... c5 {[%clk 0:01:50.3]} 20. dxc6 {[%clk 0:02:21.7]} 20... bxc6 {[%clk
0:01:50.4]} 21. Bxc6 {[%clk 0:02:04.5]} 21... Nxc6 {[%clk 0:01:47.6]} 22. Rxc6
{[%clk 0:02:04]} 22... Qxe2 {[%clk 0:01:48.1]} 23. Re1 {[%clk 0:02:02.6]} 23...
Qf3 {[%clk 0:01:44.6]} 24. Rc3 {[%clk 0:01:50.2]} 24... Qf6 {[%clk 0:01:43.8]}
25. Rd3 {[%clk 0:01:36]} 25... Rd7 {[%clk 0:01:41.6]} 26. Red1 {[%clk
0:01:34.6]} 26... Rbd8 {[%clk 0:01:41.3]} 27. Rd5 {[%clk 0:01:34.2]} 27... h5
{[%clk 0:01:38.1]} 28. h4 {[%clk 0:01:33.4]} 28... Qf3 {[%clk 0:01:36.2]} 29.
R1d3 {[%clk 0:01:27.5]} 29... Qe4 {[%clk 0:01:33.8]} 30. R3d4 {[%clk 0:01:24.5]}
30... Qf3 {[%clk 0:01:31.9]} 31. Qd2 {[%clk 0:01:23.9]} 31... Qf6 {[%clk
0:01:26.8]} 32. b4 {[%clk 0:01:22.3]} 32... Qe7 {[%clk 0:01:24.3]} 33. a4 {[%clk
0:01:21.3]} 33... Qf6 {[%clk 0:01:20.6]} 34. b5 {[%clk 0:01:21.2]} 34... Qf3
{[%clk 0:01:18.6]} 35. Rd3 {[%clk 0:01:13.7]} 35... Qf6 {[%clk 0:01:17.7]} 36.
Qb4 {[%clk 0:01:08.6]} 36... Qa1+ {[%clk 0:01:16.4]} 37. Kg2 {[%clk 0:01:07.8]}
37... Qa2 {[%clk 0:01:14.1]} 38. Qf4 {[%clk 0:01:01.9]} 38... Qa1 {[%clk
0:01:07.8]} 39. Qb4 {[%clk 0:00:58.7]} 39... Qa2 {[%clk 0:01:07.5]} 40. a5
{[%clk 0:00:56.2]} 40... Qa1 {[%clk 0:01:06.5]} 41. b6 {[%clk 0:00:54.6]} 41...
axb6 {[%clk 0:01:06.3]} 42. axb6 {[%clk 0:00:55.3]} 42... Qa6 {[%clk 0:01:03.9]}
43. Rxd6 {[%clk 0:00:49.7]} 43... Qxd3 {[%clk 0:01:02]} 44. Rxd3 {[%clk
0:00:46.1]} 44... Rxd3 {[%clk 0:01:02.9]} 45. b7 {[%clk 0:00:33]} 45... Rb8
{[%clk 0:01:01.2]} 46. Qb5 {[%clk 0:00:21.3]} 46... Rdd8 {[%clk 0:00:59.5]} 47.
Kf3 {[%clk 0:00:20.4]} 47... Re8 {[%clk 0:00:58.7]} 48. Qc6 {[%clk 0:00:18.2]}
48... Kh7 {[%clk 0:00:54.8]} 49. Qc7 {[%clk 0:00:17.6]} 49... Kg7 {[%clk
0:00:54.4]} 50. Kf4 {[%clk 0:00:17.6]} 50... Rbd8 {[%clk 0:00:52.8]} 51. Kf3
{[%clk 0:00:16.5]} 51... Kf8 {[%clk 0:00:50.5]} 52. Kg2 {[%clk 0:00:16.4]} 52...
Rb8 {[%clk 0:00:44.5]} 53. Kh3 {[%clk 0:00:16.3]} 53... Red8 {[%clk 0:00:43.6]}
54. f3 {[%clk 0:00:16.1]} 54... Ke8 {[%clk 0:00:44]} 55. g4 {[%clk 0:00:16]}
55... hxg4+ {[%clk 0:00:43.5]} 56. fxg4 {[%clk 0:00:14.4]} 56... Rd3+ {[%clk
0:00:42.5]} 57. Kg2 {[%clk 0:00:14.5]} 57... Rdd8 {[%clk 0:00:42.6]} 58. Kg3
{[%clk 0:00:14.2]} 58... Kf8 {[%clk 0:00:42.3]} 59. h5 {[%clk 0:00:13.4]} 59...
Kg7 {[%clk 0:00:42]} 60. Kh4 {[%clk 0:00:13.1]} 60... Rh8 {[%clk 0:00:40.8]} 61.
Kg5 {[%clk 0:00:11.5]} 61... gxh5 {[%clk 0:00:39.8]} 62. gxh5 {[%clk 0:00:11.4]}
62... Rhe8 {[%clk 0:00:34]} 63. h6+ {[%clk 0:00:11.3]} 63... Kg8 {[%clk
0:00:33.5]} 64. Qc3 {[%clk 0:00:09]} 64... Kf8 {[%clk 0:00:20.5]} 65. h7 {[%clk
0:00:07.4]} 65... Ke7 {[%clk 0:00:20.6]} 66. Qc7+ {[%clk 0:00:06.4]} 66... Ke6
{[%clk 0:00:20.1]} 67. Kh6 {[%clk 0:00:06.3]} 67... f5 {[%clk 0:00:19.3]} 68.
Kg7 {[%clk 0:00:02.8]} 68... f4 {[%clk 0:00:16.8]} 69. Qxb8 {[%clk 0:00:02]}
69... Rc8 {[%clk 0:00:16.5]} 70. bxc8=Q+ {[%clk 0:00:01.6]} 70... Kd5 {[%clk
0:00:16]} 71. Qe8 {[%clk 0:00:02.5]} 71... Kd4 {[%clk 0:00:16.9]} 72. Qbd8+
{[%clk 0:00:03.2]} 72... Kc3 {[%clk 0:00:16.9]} 73. Qf7 {[%clk 0:00:04.1]} 73...
Kb2 {[%clk 0:00:17.2]} 74. h8=Q {[%clk 0:00:05]} 74... Ka1 {[%clk 0:00:17.9]}
75. Qhe8 {[%clk 0:00:05.9]} 75... Kb1 {[%clk 0:00:18.8]} 76. Qb7+ {[%clk
0:00:06.4]} 76... Ka1 {[%clk 0:00:19.7]} 77. Qda8# {[%clk 0:00:06.6]} 1-0

[Event "Late-Titled-Tuesday-Blitz-June-18-2024"]
[Site "Chess.com"]
[Date "2024.06.18"]
[Round "7"]
[White "TigrVShlyape"]
[Black "Bryanl106"]
[Result "1/2-1/2"]
[WhiteElo "3003"]
[BlackElo "2753"]
[TimeControl "180+1"]
[EndTime "15:20:36 PDT"]
[Termination "Game drawn by repetition"]

1. e4 {[%clk 0:03:00.9]} 1... e5 {[%clk 0:02:59.9]} 2. Nf3 {[%clk 0:03:00.1]}
2... Nc6 {[%clk 0:03:00.6]} 3. Bb5 {[%clk 0:02:59.1]} 3... a6 {[%clk 0:03:01.1]}
4. Ba4 {[%clk 0:02:59.3]} 4... Nf6 {[%clk 0:03:01.8]} 5. O-O {[%clk 0:02:59.3]}
5... d6 {[%clk 0:03:02.5]} 6. c3 {[%clk 0:02:57.3]} 6... g6 {[%clk 0:03:01.2]}
7. d4 {[%clk 0:02:56.8]} 7... Bd7 {[%clk 0:03:00.6]} 8. Re1 {[%clk 0:02:55.5]}
8... Bg7 {[%clk 0:02:57.6]} 9. Bg5 {[%clk 0:02:32.6]} 9... h6 {[%clk 0:02:54]}
10. Bh4 {[%clk 0:02:32]} 10... O-O {[%clk 0:02:52]} 11. Nbd2 {[%clk 0:02:29.4]}
11... Re8 {[%clk 0:02:50.3]} 12. h3 {[%clk 0:02:13.4]} 12... b5 {[%clk
0:02:39.9]} 13. Bb3 {[%clk 0:02:10.8]} 13... Na5 {[%clk 0:02:38.6]} 14. Bc2
{[%clk 0:02:08.3]} 14... c5 {[%clk 0:02:36.4]} 15. d5 {[%clk 0:02:08.5]} 15...
g5 {[%clk 0:02:34.8]} 16. Bg3 {[%clk 0:02:08]} 16... Nh5 {[%clk 0:02:22.7]} 17.
Nf1 {[%clk 0:01:54.2]} 17... Nf4 {[%clk 0:02:20.4]} 18. Ne3 {[%clk 0:01:51.9]}
18... Rb8 {[%clk 0:02:12.8]} 19. b3 {[%clk 0:01:49.7]} 19... b4 {[%clk
0:01:57.2]} 20. c4 {[%clk 0:01:48.8]} 20... Nb7 {[%clk 0:01:56.3]} 21. a4 {[%clk
0:01:43]} 21... a5 {[%clk 0:01:40]} 22. Nh2 {[%clk 0:01:36.6]} 22... Qf6 {[%clk
0:01:05.2]} 23. Nhf1 {[%clk 0:01:32.9]} 23... Nd8 {[%clk 0:01:00.3]} 24. Qd2
{[%clk 0:01:26.1]} 24... Nb7 {[%clk 0:00:57.8]} 25. Bh2 {[%clk 0:01:25.8]} 25...
Kf8 {[%clk 0:00:57.9]} 26. Ng3 {[%clk 0:01:25.6]} 26... Ke7 {[%clk 0:00:55.2]}
27. Ngf5+ {[%clk 0:01:24.9]} 27... Kd8 {[%clk 0:00:55.7]} 28. g3 {[%clk
0:01:10.7]} 28... Bxf5 {[%clk 0:00:44]} 29. Nxf5 {[%clk 0:00:56.1]} 29... Ng6
{[%clk 0:00:41.7]} 30. Bd1 {[%clk 0:00:54.4]} 30... Ne7 {[%clk 0:00:40.3]} 31.
Ne3 {[%clk 0:00:53.8]} 31... Kc7 {[%clk 0:00:39.7]} 32. Bh5 {[%clk 0:00:52.9]}
32... Bf8 {[%clk 0:00:34.7]} 33. Kg2 {[%clk 0:00:52.1]} 33... Kb6 {[%clk
0:00:30.6]} 34. Qe2 {[%clk 0:00:51.2]} 34... Nd8 {[%clk 0:00:21.8]} 35. Qf3
{[%clk 0:00:45.2]} 35... Qxf3+ {[%clk 0:00:20.4]} 36. Bxf3 {[%clk 0:00:44.3]}
36... Ng8 {[%clk 0:00:18.6]} 37. Nf5 {[%clk 0:00:43.5]} 37... Kc7 {[%clk
0:00:17.6]} 38. Be2 {[%clk 0:00:40.9]} 38... Ne7 {[%clk 0:00:17.8]} 39. Ne3
{[%clk 0:00:40.7]} 39... Bg7 {[%clk 0:00:18.1]} 40. Rh1 {[%clk 0:00:36.1]} 40...
Rg8 {[%clk 0:00:17.9]} 41. Bg1 {[%clk 0:00:36.1]} 41... Nb7 {[%clk 0:00:18]} 42.
h4 {[%clk 0:00:34.7]} 42... gxh4 {[%clk 0:00:17.9]} 43. Rxh4 {[%clk 0:00:34.2]}
43... Rh8 {[%clk 0:00:18.8]} 44. Bh5 {[%clk 0:00:26.6]} 44... Rbf8 {[%clk
0:00:18.2]} 45. Bg4 {[%clk 0:00:25.1]} 45... Nd8 {[%clk 0:00:18.3]} 46. f3
{[%clk 0:00:24.1]} 46... Bf6 {[%clk 0:00:18.4]} 47. Rh3 {[%clk 0:00:21.4]} 47...
Rfg8 {[%clk 0:00:19.3]} 48. Bf2 {[%clk 0:00:20.5]} 48... Bg5 {[%clk 0:00:19.7]}
49. Nf5 {[%clk 0:00:19.7]} 49... Nxf5 {[%clk 0:00:19.6]} 50. Bxf5 {[%clk
0:00:20.2]} 50... f6 {[%clk 0:00:15.2]} 51. Rah1 {[%clk 0:00:19.7]} 51... Rg7
{[%clk 0:00:13.6]} 52. Kf1 {[%clk 0:00:19.7]} 52... Nf7 {[%clk 0:00:12.8]} 53.
Ke2 {[%clk 0:00:19.8]} 53... Kd8 {[%clk 0:00:12.2]} 54. Rh5 {[%clk 0:00:19.3]}
54... Ke7 {[%clk 0:00:12.2]} 55. Be1 {[%clk 0:00:19.5]} 55... Rhg8 {[%clk
0:00:10.7]} 56. Rf1 {[%clk 0:00:19.5]} 56... Bc1 {[%clk 0:00:08.4]} 57. Rfh1
{[%clk 0:00:12.5]} 57... Bb2 {[%clk 0:00:07.4]} 58. Be6 {[%clk 0:00:10.8]} 58...
Rh8 {[%clk 0:00:04.7]} 59. Bxf7 {[%clk 0:00:09.8]} 59... Kxf7 {[%clk 0:00:05.6]}
60. g4 {[%clk 0:00:09.9]} 60... Rgh7 {[%clk 0:00:03.9]} 61. Bd2 {[%clk
0:00:10.2]} 61... Kg6 {[%clk 0:00:04.2]} 62. f4 {[%clk 0:00:08.8]} 62... exf4
{[%clk 0:00:05.1]} 63. Bxf4 {[%clk 0:00:08.6]} 63... Be5 {[%clk 0:00:05.7]} 64.
Be3 {[%clk 0:00:07.1]} 64... Kg7 {[%clk 0:00:05.2]} 65. Kf3 {[%clk 0:00:07.4]}
65... Kg6 {[%clk 0:00:05.8]} 66. Rf5 {[%clk 0:00:07.3]} 66... Kg7 {[%clk
0:00:06]} 67. Rfh5 {[%clk 0:00:06.9]} 67... Kg6 {[%clk 0:00:06.5]} 68. Bd2
{[%clk 0:00:07.1]} 68... Kg7 {[%clk 0:00:06.9]} 69. Ke2 {[%clk 0:00:06.8]} 69...
Kg6 {[%clk 0:00:07.5]} 70. Kf3 {[%clk 0:00:06.6]} 70... Kg7 {[%clk 0:00:08]} 71.
Be3 {[%clk 0:00:06.3]} 1/2-1/2

[Event "Late-Titled-Tuesday-Blitz-June-18-2024"]
[Site "Chess.com"]
[Date "2024.06.18"]
[Round "7"]
[White "manitodeplomo"]
[Black "JG1me"]
[Result "0-1"]
[WhiteElo "2662"]
[BlackElo "2561"]
[TimeControl "180+1"]
[EndTime "15:20:36 PDT"]
[Termination "JG1me won by resignation"]

1. d4 {[%clk 0:02:58.4]} 1... Nf6 {[%clk 0:02:59.8]} 2. c4 {[%clk 0:02:56.9]}
2... e6 {[%clk 0:02:59.5]} 3. Nf3 {[%clk 0:02:57.1]} 3... b6 {[%clk 0:02:58.1]}
4. g3 {[%clk 0:02:55.7]} 4... Bb7 {[%clk 0:02:58.8]} 5. Bg2 {[%clk 0:02:54]}
5... Bb4+ {[%clk 0:02:59.4]} 6. Bd2 {[%clk 0:02:53.6]} 6... c5 {[%clk
0:02:59.5]} 7. Bxb4 {[%clk 0:02:49.4]} 7... cxb4 {[%clk 0:02:58.8]} 8. O-O
{[%clk 0:02:49.8]} 8... O-O {[%clk 0:02:59.4]} 9. Qd3 {[%clk 0:02:49.3]} 9... d6
{[%clk 0:02:55]} 10. Nbd2 {[%clk 0:02:48.3]} 10... Nbd7 {[%clk 0:02:55]} 11. e4
{[%clk 0:02:47]} 11... e5 {[%clk 0:02:55.2]} 12. Rfe1 {[%clk 0:02:46.9]} 12...
Qc7 {[%clk 0:02:53.3]} 13. a3 {[%clk 0:02:36.8]} 13... bxa3 {[%clk 0:02:53.2]}
14. Rxa3 {[%clk 0:02:32.8]} 14... a5 {[%clk 0:02:53.1]} 15. Rb1 {[%clk
0:02:26.2]} 15... Rfe8 {[%clk 0:02:20.1]} 16. Re1 {[%clk 0:02:21.1]} 16... Red8
{[%clk 0:02:13.7]} 17. Raa1 {[%clk 0:02:16]} 17... Rac8 {[%clk 0:02:10]} 18. b3
{[%clk 0:02:15.1]} 18... Re8 {[%clk 0:02:06.4]} 19. Rad1 {[%clk 0:02:00.4]}
19... Rcd8 {[%clk 0:01:54.9]} 20. h3 {[%clk 0:01:58.2]} 20... h6 {[%clk
0:01:54.1]} 21. Kh2 {[%clk 0:01:58.6]} 21... Ba6 {[%clk 0:01:54.3]} 22. Qb1
{[%clk 0:01:47.7]} 22... b5 {[%clk 0:01:41]} 23. Qa2 {[%clk 0:01:20]} 23... bxc4
{[%clk 0:01:21.5]} 24. bxc4 {[%clk 0:01:19.9]} 24... exd4 {[%clk 0:01:21.8]} 25.
Nxd4 {[%clk 0:01:18.9]} 25... Nc5 {[%clk 0:01:22.5]} 26. Qa3 {[%clk 0:01:08.7]}
26... Rb8 {[%clk 0:01:09.9]} 27. Ra1 {[%clk 0:00:39.5]} 27... a4 {[%clk
0:01:10.4]} 28. Qc3 {[%clk 0:00:32.1]} 28... Bb7 {[%clk 0:00:58.5]} 29. Nf5
{[%clk 0:00:29.6]} 29... Bc8 {[%clk 0:00:44.8]} 30. Nxh6+ {[%clk 0:00:29]} 30...
Kf8 {[%clk 0:00:42.5]} 31. Nf5 {[%clk 0:00:28.5]} 31... Bxf5 {[%clk 0:00:42.2]}
32. exf5 {[%clk 0:00:28.6]} 32... Qd7 {[%clk 0:00:37.1]} 33. g4 {[%clk
0:00:27.6]} 33... Qc7 {[%clk 0:00:33.4]} 34. Qg3 {[%clk 0:00:25.5]} 34... Nb3
{[%clk 0:00:28.6]} 35. Rxe8+ {[%clk 0:00:22.6]} 35... Nxe8 {[%clk 0:00:25.2]}
36. Rd1 {[%clk 0:00:23.1]} 36... Nxd2 {[%clk 0:00:21.6]} 37. Rxd2 {[%clk
0:00:23.1]} 37... Qxc4 {[%clk 0:00:21.9]} 38. Bd5 {[%clk 0:00:19]} 38... Qc5
{[%clk 0:00:15.8]} 39. g5 {[%clk 0:00:15]} 39... a3 {[%clk 0:00:10.3]} 40. f6
{[%clk 0:00:14.6]} 40... Rb2 {[%clk 0:00:10.3]} 41. fxg7+ {[%clk 0:00:12.9]}
41... Nxg7 {[%clk 0:00:10]} 42. Rxb2 {[%clk 0:00:12.6]} 42... axb2 {[%clk
0:00:10]} 43. Be4 {[%clk 0:00:12.2]} 43... Qd4 {[%clk 0:00:05.6]} 44. Qf3 {[%clk
0:00:11.2]} 44... Ne6 {[%clk 0:00:05.1]} 45. g6 {[%clk 0:00:10.6]} 45... f6
{[%clk 0:00:04.8]} 46. Qf5 {[%clk 0:00:09.9]} 46... Qe5+ {[%clk 0:00:02.2]} 47.
Qxe5 {[%clk 0:00:10.1]} 47... dxe5 {[%clk 0:00:03.1]} 48. h4 {[%clk 0:00:10.7]}
48... Kg7 {[%clk 0:00:03.5]} 49. h5 {[%clk 0:00:10.8]} 49... Nc5 {[%clk
0:00:04]} 50. Bf5 {[%clk 0:00:10.8]} 50... Nb3 {[%clk 0:00:03.7]} 51. Bc2 {[%clk
0:00:10.2]} 51... Nd2 {[%clk 0:00:04.2]} 52. Kg3 {[%clk 0:00:10.5]} 52... b1=Q
{[%clk 0:00:04.8]} 53. Bxb1 {[%clk 0:00:10.9]} 53... Nxb1 {[%clk 0:00:05.7]} 54.
f4 {[%clk 0:00:11.4]} 54... exf4+ {[%clk 0:00:05.2]} 55. Kxf4 {[%clk 0:00:11.5]}
55... Nc3 {[%clk 0:00:05.7]} 56. Kf5 {[%clk 0:00:12]} 56... Nd5 {[%clk
0:00:05.9]} 57. Ke6 {[%clk 0:00:12.5]} 57... Nf4+ {[%clk 0:00:06]} 58. Kf5
{[%clk 0:00:12.8]} 58... Nxh5 {[%clk 0:00:06.7]} 59. Kg4 {[%clk 0:00:12]} 59...
Kxg6 {[%clk 0:00:07.6]} 60. Kh4 {[%clk 0:00:12.3]} 60... f5 {[%clk 0:00:08.5]}
61. Kh3 {[%clk 0:00:12.3]} 61... Kg5 {[%clk 0:00:09.4]} 62. Kg2 {[%clk
0:00:13.1]} 62... Kg4 {[%clk 0:00:10.2]} 63. Kf2 {[%clk 0:00:13.5]} 63... Kf4
{[%clk 0:00:10.9]} 64. Kg2 {[%clk 0:00:14.4]} 64... Ke3 {[%clk 0:00:11.5]} 65.
Kf1 {[%clk 0:00:14.7]} 65... Kf3 {[%clk 0:00:11.8]} 66. Ke1 {[%clk 0:00:15.6]}
66... Kg2 {[%clk 0:00:12.2]} 0-1